bitfinex-derivatives/quotes_BNBF0:USTF0_20260110
["timestamp","ask_amount","ask_price","bid_price","bid_amount"]
[1768083711541,0.19256947,904.09,902.76,0.68539738]
[1768083711739,0.19256947,904.09,902.77,0.68539738]
[1768083711944,0.19256947,904.09,902.78,0.68539738]
[1768083712142,0.19256947,904.09,902.79,0.68539738]
[1768083712343,0.19256947,904.09,902.59,7.37430575]
[1768083712547,0.19256947,904.09,902.6,0.68545108]
[1768083712846,0.19256947,904.09,902.61,0.68545108]
[1768083713046,0.19256947,904.09,902.62,0.68545108]
[1768083713244,0.19256947,904.09,902.63,0.68545108]
[1768083713443,0.19256947,904.09,902.64,0.68545108]
[1768083713643,0.19256947,904.09,902.65,0.68545108]
[1768083713848,0.19256947,904.09,902.66,0.68545108]
[1768083714043,0.19256947,904.09,902.67,0.68545108]
[1768083714348,0.19256947,904.09,902.68,0.68545108]
[1768083714543,0.19256947,904.09,902.69,0.68545108]
[1768083714743,0.19256947,904.09,902.7,0.68545108]
[1768083715043,0.19256947,904.09,902.71,0.68545108]
[1768083715243,0.19256947,904.09,902.59,7.37430575]
[1768083715244,0.19256947,904.09,902.72,0.68545108]
[1768083715443,0.19256947,904.09,902.73,0.68545108]
[1768083715643,0.19256947,904.09,902.74,0.68545108]
[1768083715947,0.19256947,904.09,902.75,0.68545108]
[1768083716147,0.19256947,904.09,902.76,0.68545108]
[1768083716348,0.19256947,904.09,902.77,0.68545108]
[1768083716548,0.19256947,904.09,902.59,7.37430575]
[1768083716746,0.19256947,904.09,902.6,0.68298966]
[1768083716950,0.19256947,904.09,902.61,0.68298966]
[1768083717146,0.19256947,904.09,902.62,0.68298966]
[1768083717449,0.19256947,904.09,902.63,0.68298966]
[1768083717650,0.19256947,904.09,902.64,0.68298966]
[1768083717945,0.19256947,904.09,902.65,0.68298966]
[1768083718146,0.19256947,904.09,902.66,0.68298966]
[1768083718346,0.19256947,904.09,902.67,0.68298966]
[1768083718551,0.19256947,904.09,902.68,0.68298966]
[1768083718751,0.19256947,904.09,902.69,0.68298966]
[1768083718952,0.19256947,904.09,902.7,0.68298966]
[1768083719152,0.19256947,904.09,902.71,0.68298966]
[1768083719348,0.19256947,904.09,902.72,0.68298966]
[1768083719652,0.19256947,904.09,902.73,0.68298966]
[1768083719847,0.19256947,904.09,902.74,0.68298966]
[1768083720049,0.19256947,904.09,902.75,0.68298966]
[1768083720249,0.19256947,904.09,902.76,0.68298966]
[1768083720453,0.19256947,904.09,902.77,0.68298966]
[1768083720749,0.19256947,904.09,902.78,0.68298966]
[1768083720954,0.19256947,904.09,902.59,7.37430575]
[1768083721155,0.19256947,904.09,902.6,0.68321908]
[1768083721449,0.19256947,904.09,902.61,0.68321908]
[1768083721753,0.19256947,904.09,902.62,0.68321908]
[1768083721950,0.19256947,904.09,902.63,0.68321908]
[1768083722154,0.19256947,904.09,902.64,0.68321908]
[1768083722352,0.19256947,904.09,902.65,0.68321908]
[1768083722552,0.19256947,904.09,902.66,0.68321908]
[1768083722752,0.19256947,904.09,902.67,0.68321908]
[1768083722952,0.19256947,904.09,902.68,0.68321908]
[1768083723151,0.19256947,904.09,902.69,0.68321908]
[1768083723450,0.19256947,904.09,902.7,0.68321908]
[1768083723653,0.19256947,904.09,902.71,0.68321908]
[1768083723950,0.19256947,904.09,902.72,0.68321908]
[1768083724150,0.19256947,904.09,902.73,0.68321908]
[1768083724455,0.19256947,904.09,902.74,0.68321908]
[1768083724652,0.19256947,904.09,902.75,0.68321908]
[1768083724851,0.19256947,904.09,902.59,7.37430575]
[1768083724852,0.19256947,904.09,902.76,0.68321908]
[1768083725053,0.19256947,904.09,902.77,0.68321908]
[1768083725253,0.19256947,904.09,902.78,0.68321908]
[1768083725556,0.19256947,904.09,902.79,0.68321908]
[1768083725756,0.19256947,904.09,902.8,0.68321908]
[1768083726052,0.19256947,904.09,902.59,7.37430575]
[1768083726252,0.19256947,904.09,902.6,0.68359361]
[1768083726457,0.19256947,904.09,902.61,0.68359361]
[1768083726657,0.19256947,904.09,902.62,0.68359361]
[1768083726853,0.19256947,904.09,902.63,0.68359361]
[1768083727155,0.19256947,904.09,902.64,0.68359361]
[1768083727354,0.19256947,904.09,902.65,0.68359361]
[1768083727657,0.19256947,904.09,902.66,0.68359361]
[1768083727957,0.19256947,904.09,902.67,0.68359361]
[1768083728156,0.19256947,904.09,902.68,0.68359361]
[1768083728355,0.19256947,904.09,902.69,0.68359361]
[1768083728558,0.19256947,904.09,902.7,0.68359361]
[1768083728758,0.19256947,904.09,902.71,0.68359361]
[1768083728957,0.19256947,904.09,902.72,0.68359361]
[1768083729154,0.19256947,904.09,902.73,0.68359361]
[1768083729452,0.19256947,904.09,902.74,0.68359361]
[1768083729655,0.19256947,904.09,902.75,0.68359361]
[1768083729854,0.19256947,904.09,902.59,7.37430575]
[1768083729855,0.19256947,904.09,902.76,0.68359361]
[1768083730158,0.19256947,904.09,902.77,0.68359361]
[1768083730358,0.19256947,904.09,902.78,0.68359361]
[1768083730658,0.19256947,904.09,902.79,0.68359361]
[1768083730858,0.19256947,904.09,902.8,0.68359361]
[1768083731155,0.19256947,904.09,902.81,0.68359361]
[1768083731356,0.19256947,904.09,902.82,0.68359361]
[1768083731554,0.19256947,904.09,902.83,0.68359361]
[1768083731757,0.19256947,904.09,902.84,0.68359361]
[1768083731958,0.19256947,904.09,902.59,7.37430575]
[1768083732258,0.19256947,904.09,902.6,0.68425846]
[1768083732555,0.19256947,904.09,902.61,0.68425846]
[1768083732857,0.19256947,904.09,902.62,0.68425846]
[1768083733057,0.19256947,904.09,902.63,0.68425846]
[1768083733358,0.19256947,904.09,902.64,0.68425846]
[1768083733558,0.19256947,904.09,902.65,0.68425846]
[1768083733755,0.19256947,904.09,902.66,0.68425846]
[1768083733955,0.19256947,904.09,902.67,0.68425846]
[1768083734158,0.19256947,904.09,902.68,0.68425846]
[1768083734357,0.19256947,904.09,902.69,0.68425846]
[1768083734556,0.19256947,904.09,902.7,0.68425846]
[1768083734755,0.19256947,904.09,902.71,0.68425846]
[1768083734958,0.19256947,904.09,902.72,0.68425846]
[1768083735160,0.19256947,904.09,902.73,0.68425846]
[1768083735360,0.19256947,904.09,902.74,0.68425846]
[1768083735658,0.19256947,904.09,902.75,0.68425846]
[1768083735960,0.19256947,904.09,902.76,0.68425846]
[1768083736161,0.19256947,904.09,902.77,0.68425846]
[1768083736461,0.19256947,904.09,902.78,0.68425846]
[1768083736657,0.19256947,904.09,902.79,0.68425846]
[1768083736960,0.19256947,904.09,902.8,0.68425846]
[1768083737260,0.19256947,904.09,902.81,0.68425846]
[1768083737461,0.19256947,904.09,902.82,0.68425846]
[1768083737661,0.19256947,904.09,902.83,0.68425846]
[1768083737960,0.19256947,904.09,902.84,0.68425846]
[1768083738258,0.19256947,904.09,902.85,0.68425846]
[1768083738462,0.19256947,904.09,902.86,0.68425846]
[1768083738662,0.19256947,904.09,902.59,7.37430575]
[1768083738860,0.19256947,904.09,902.6,0.68486408]
[1768083739062,0.19256947,904.09,902.61,0.68486408]
[1768083739264,0.19256947,904.09,902.62,0.68486408]
[1768083739459,0.19256947,904.09,902.63,0.68486408]
[1768083739663,0.19256947,904.09,902.64,0.68486408]
[1768083739865,0.19256947,904.09,902.65,0.68486408]
[1768083740162,0.19256947,904.09,902.66,0.68486408]
[1768083740364,0.19256947,904.09,902.67,0.68486408]
[1768083740560,0.19256947,904.09,902.68,0.68486408]
[1768083740861,0.19256947,904.09,902.69,0.68486408]
[1768083741160,0.19256947,904.09,902.7,0.68486408]
[1768083741360,0.19256947,904.09,902.71,0.68486408]
[1768083741561,0.19256947,904.09,902.72,0.68486408]
[1768083741760,0.19256947,904.09,902.73,0.68486408]
[1768083741964,0.19256947,904.09,902.74,0.68486408]
[1768083742260,0.19256947,904.09,902.75,0.68486408]
[1768083742461,0.19256947,904.09,902.76,0.68486408]
[1768083742665,0.19256947,904.09,902.77,0.68486408]
[1768083742866,0.19256947,904.09,902.78,0.68486408]
[1768083743166,0.19256947,904.09,902.79,0.68486408]
[1768083743367,0.19256947,904.09,902.8,0.68486408]
[1768083743662,0.19256947,904.09,902.81,0.68486408]
[1768083743868,0.19256947,904.09,902.82,0.68486408]
[1768083744065,0.19256947,904.09,902.83,0.68486408]
[1768083744365,0.19256947,904.09,902.84,0.68486408]
[1768083744564,0.19256947,904.09,902.59,7.37430575]
[1768083744868,0.19256947,904.09,902.6,0.68493631]
[1768083745065,0.19256947,904.09,902.61,0.68493631]
[1768083745269,0.19256947,904.09,902.62,0.68493631]
[1768083745465,0.19256947,904.09,902.63,0.68493631]
[1768083745663,0.19256947,904.09,902.64,0.68493631]
[1768083745965,0.19256947,904.09,902.65,0.68493631]
[1768083746265,0.19256947,904.09,902.66,0.68493631]
[1768083746464,0.19256947,904.09,902.67,0.68493631]
[1768083746663,0.19256947,904.09,902.68,0.68493631]
[1768083746863,0.19256947,904.09,902.69,0.68493631]
[1768083747064,0.19256947,904.09,902.7,0.68493631]
[1768083747265,0.19256947,904.09,902.71,0.68493631]
[1768083747565,0.19256947,904.09,902.72,0.68493631]
[1768083747764,0.19256947,904.09,902.73,0.68493631]
[1768083747969,0.19256947,904.09,902.74,0.68493631]
[1768083748166,0.19256947,904.09,902.75,0.68493631]
[1768083748371,0.19256947,904.09,902.76,0.68493631]
[1768083748672,0.19256947,904.09,902.64,2.605]
[1768083748870,0.19256947,904.09,902.65,0.68503563]
[1768083749068,0.19256947,904.09,902.66,0.68503563]
[1768083749270,0.19256947,904.09,902.67,0.68503563]
[1768083749470,0.19256947,904.09,902.68,0.68503563]
[1768083749666,0.19256947,904.09,902.69,0.68503563]
[1768083749971,0.19256947,904.09,902.7,0.68503563]
[1768083750168,0.19256947,904.09,902.64,2.605]
[1768083750369,0.19256947,904.09,902.65,0.68479984]
[1768083750566,0.19256947,904.09,902.66,0.68479984]
[1768083750769,0.19256947,904.09,902.67,0.68479984]
[1768083750967,0.19256947,904.09,902.64,2.605]
[1768083751167,0.19256947,904.09,902.65,0.68482481]
[1768083751371,0.19256947,904.09,902.64,2.605]
[1768083755073,0.19256947,904.09,902.65,0.68422797]
[1768083755273,0.19256947,904.09,902.66,0.68422797]
[1768083755570,0.19256947,904.09,902.67,0.68422797]
[1768083755768,0.19256947,904.09,902.68,0.68422797]
[1768083755969,0.19256947,904.09,902.69,0.68422797]
[1768083756171,0.19256947,904.09,902.7,0.68422797]
[1768083756369,0.19256947,904.09,902.71,0.68422797]
[1768083756572,0.19256947,904.09,902.72,0.68422797]
[1768083756775,0.19256947,904.09,902.73,0.68422797]
[1768083756973,0.19256947,904.09,902.74,0.68422797]
[1768083757174,0.19256947,904.09,902.75,0.68422797]
[1768083757376,0.19256947,904.09,902.76,0.68422797]
[1768083757575,0.19256947,904.09,902.77,0.68422797]
[1768083757776,0.19256947,904.09,902.78,0.68422797]
[1768083757974,0.19256947,904.09,902.79,0.68422797]
[1768083758178,0.19256947,904.09,902.8,0.68422797]
[1768083758379,0.19256947,904.09,902.81,0.68422797]
[1768083758574,0.19256947,904.09,902.82,0.68422797]
[1768083758780,0.19256947,904.09,902.83,0.68422797]
[1768083758979,0.19256947,904.09,902.64,2.605]
[1768083759279,0.19256947,904.09,902.65,0.68422849]
[1768083759480,0.19256947,904.09,902.66,0.68422849]
[1768083759682,0.19256947,904.09,902.67,0.68422849]
[1768083759980,0.19256947,904.09,902.68,0.68422849]
[1768083760176,0.19256947,904.09,902.69,0.68422849]
[1768083760377,0.19256947,904.09,902.7,0.68422849]
[1768083760575,0.19256947,904.09,902.71,0.68422849]
[1768083760877,0.19256947,904.09,902.72,0.68422849]
[1768083761075,0.19256947,904.09,902.73,0.68422849]
[1768083761279,0.19256947,904.09,902.74,0.68422849]
[1768083761476,0.19256947,904.09,902.75,0.68422849]
[1768083761681,0.19256947,904.09,902.76,0.68422849]
[1768083761877,0.19256947,904.09,902.77,0.68422849]
[1768083762081,0.19256947,904.09,902.78,0.68422849]
[1768083762276,0.19256947,904.09,902.79,0.68422849]
[1768083762480,0.19256947,904.09,902.8,0.68422849]
[1768083762777,0.19256947,904.09,902.81,0.68422849]
[1768083762980,0.19256947,904.09,902.82,0.68422849]
[1768083763181,0.19256947,904.09,902.6,7.31850298]
[1768083763381,0.19256947,904.09,902.61,0.68423475]
[1768083763680,0.19256947,904.09,902.62,0.68423475]
[1768083763881,0.19256947,904.09,902.63,0.68423475]
[1768083764078,0.19256947,904.09,902.64,0.68423475]
[1768083764282,0.19256947,904.09,902.65,0.68423475]
[1768083764579,0.19256947,904.09,902.66,0.68423475]
[1768083764781,0.19256947,904.09,902.67,0.68423475]
[1768083764979,0.19256947,904.09,902.68,0.68423475]
[1768083765180,0.19256947,904.09,902.69,0.68423475]
[1768083765384,0.19256947,904.09,902.7,0.68423475]
[1768083765584,0.19256947,904.09,902.71,0.68423475]
[1768083765780,0.19256947,904.09,902.72,0.68423475]
[1768083765982,0.19256947,904.09,902.73,0.68423475]
[1768083766184,0.19256947,904.09,902.74,0.68423475]
[1768083766380,0.19256947,904.09,902.75,0.68423475]
[1768083766584,0.19256947,904.09,902.76,0.68423475]
[1768083766882,0.19256947,904.09,902.77,0.68423475]
[1768083767078,0.19256947,904.09,902.78,0.68423475]
[1768083767280,0.19256947,904.09,902.79,0.68423475]
[1768083767480,0.19256947,904.09,902.8,0.68423475]
[1768083767680,0.19256947,904.09,902.81,0.68423475]
[1768083767882,0.19256947,904.09,902.82,0.68423475]
[1768083768081,0.19256947,904.09,902.77,2.139]
[1768083768285,0.19256947,904.09,902.78,0.68425234]
[1768083768483,0.19256947,904.09,902.79,0.68425234]
[1768083768686,0.19256947,904.09,902.8,0.68425234]
[1768083768887,0.19256947,904.09,902.81,0.68425234]
[1768083769082,0.19256947,904.09,902.82,0.68425234]
[1768083769287,0.19256947,904.09,902.77,2.139]
[1768083769488,0.19256947,904.09,902.78,0.68425424]
[1768083769685,0.19256947,904.09,902.79,0.68425424]
[1768083769984,0.19256947,904.09,902.8,0.68425424]
[1768083770187,0.19256947,904.09,902.81,0.68425424]
[1768083770387,0.19256947,904.09,902.82,0.68425424]
[1768083770589,0.19256947,904.09,902.77,2.139]
[1768083770785,0.19256947,904.09,902.78,0.6842558]
[1768083771084,0.19256947,904.09,902.79,0.6842558]
[1768083771287,0.19256947,904.09,902.8,0.6842558]
[1768083771486,0.19256947,904.09,902.81,0.6842558]
[1768083771685,0.19256947,904.09,902.82,0.6842558]
[1768083771889,0.19256947,904.09,902.77,2.139]
[1768083772091,0.19256947,904.09,902.78,0.68425699]
[1768083772287,0.19256947,904.09,902.79,0.68425699]
[1768083772492,0.19256947,904.09,902.8,0.68425699]
[1768083772789,0.19256947,904.09,902.81,0.68425699]
[1768083772991,0.19256947,904.09,902.82,0.68425699]
[1768083773192,0.19256947,904.09,902.77,2.139]
[1768083773393,0.19256947,904.09,902.78,0.68425947]
[1768083773590,0.19256947,904.09,902.79,0.68425947]
[1768083773792,0.19256947,904.09,902.8,0.68425947]
[1768083774087,0.19256947,904.09,902.81,0.68425947]
[1768083774293,0.19256947,904.09,902.82,0.68425947]
[1768083774493,0.19256947,904.09,902.77,2.139]
[1768083774790,0.19256947,904.09,902.78,0.68426062]
[1768083774993,0.19256947,904.09,902.79,0.68426062]
[1768083775289,0.19256947,904.09,902.8,0.68426062]
[1768083775493,0.19256947,904.09,902.81,0.68426062]
[1768083775790,0.19256947,904.09,902.82,0.68426062]
[1768083776090,0.19256947,904.09,902.83,0.68909391]
[1768083776389,0.19256947,904.09,902.77,2.139]
[1768083776587,0.19256947,904.09,902.78,0.68909506]
[1768083776791,0.19256947,904.09,902.79,0.68909506]
[1768083776989,0.19256947,904.09,902.8,0.68909506]
[1768083777293,0.19256947,904.09,902.81,0.68909506]
[1768083777493,0.19256947,904.09,902.82,0.68909506]
[1768083777690,0.19256947,904.09,902.83,0.68909506]
[1768083777890,0.19256947,904.09,902.77,2.139]
[1768083778188,0.19256947,904.09,902.78,0.68909634]
[1768083778390,0.19256947,904.09,902.79,0.68909634]
[1768083778590,0.19256947,904.09,902.8,0.68909634]
[1768083778791,0.19256947,904.09,902.81,0.68909634]
[1768083778992,0.19256947,904.09,902.82,0.68909634]
[1768083779190,0.19256947,904.09,902.83,0.68909634]
[1768083779392,0.19256947,904.09,902.6,7.31850298]
[1768083779591,0.19256947,904.09,902.61,0.68909881]
[1768083779790,0.19256947,904.09,902.62,0.68909881]
[1768083779993,0.19256947,904.09,902.6,7.31850298]
[1768083779994,0.19256947,904.09,902.63,0.68909881]
[1768083780193,0.19256947,904.09,902.64,0.68909881]
[1768083780395,0.19256947,904.09,902.65,0.68909881]
[1768083780596,0.19256947,904.09,902.66,0.68909881]
[1768083780792,0.19256947,904.09,902.67,0.68909881]
[1768083780996,0.19256947,904.09,902.68,0.68909881]
[1768083781193,0.19256947,904.09,902.69,0.68909881]
[1768083781393,0.19256947,904.09,902.7,0.68909881]
[1768083781592,0.19256947,904.09,902.71,0.68909881]
[1768083781891,0.19256947,904.09,902.72,0.68909881]
[1768083782095,0.19256947,904.09,902.73,0.68909881]
[1768083782300,0.19256947,904.09,902.74,0.68909881]
[1768083782498,0.19256947,904.09,902.75,0.68909881]
[1768083782700,0.19256947,904.09,902.76,0.68909881]
[1768083782900,0.19256947,904.09,902.77,0.68909881]
[1768083783198,0.19256947,904.09,902.78,0.68909881]
[1768083783396,0.19256947,904.09,902.79,0.68909881]
[1768083783599,0.19256947,904.09,902.8,0.68909881]
[1768083783800,0.19256947,904.09,902.81,0.68909881]
[1768083784000,0.19256947,904.09,902.82,0.68909881]
[1768083784202,0.19256947,904.09,902.83,0.68909881]
[1768083784498,0.19256947,904.09,902.65,2.265]
[1768083784700,0.19256947,904.09,902.66,0.68909312]
[1768083784895,0.19256947,904.09,902.67,0.68909312]
[1768083785200,0.19256947,904.09,902.68,0.68909312]
[1768083785400,0.19256947,904.09,902.69,0.68909312]
[1768083785703,0.19256947,904.09,902.7,0.68909312]
[1768083785999,0.19256947,904.09,902.71,0.68909312]
[1768083786197,0.19256947,904.09,902.72,0.68909312]
[1768083786500,0.19256947,904.09,902.73,0.68909312]
[1768083786700,0.19256947,904.09,902.74,0.68909312]
[1768083787000,0.19256947,904.09,902.75,0.68909312]
[1768083787198,0.19256947,904.09,902.76,0.68909312]
[1768083787401,0.19256947,904.09,902.77,0.68909312]
[1768083787603,0.19256947,904.09,902.78,0.68909312]
[1768083787899,0.19256947,904.09,902.79,0.68909312]
[1768083788102,0.19256947,904.09,902.8,0.68909312]
[1768083788302,0.19256947,904.09,902.81,0.68909312]
[1768083788500,0.19256947,904.09,902.82,0.68909312]
[1768083788699,0.19256947,904.09,902.65,2.265]
[1768083788901,0.19256947,904.09,902.66,0.68913258]
[1768083789202,0.19256947,904.09,902.67,0.68913258]
[1768083789401,0.19256947,904.09,902.68,0.68913258]
[1768083789698,0.19256947,904.09,902.69,0.68913258]
[1768083789899,0.19256947,904.09,902.7,0.68913258]
[1768083790204,0.19256947,904.09,902.71,0.68913258]
[1768083790503,0.19256947,904.09,902.72,0.68913258]
[1768083790701,0.19256947,904.09,902.73,0.68913258]
[1768083791004,0.19256947,904.09,902.74,0.68913258]
[1768083791304,0.19256947,904.09,902.75,0.68913258]
[1768083791501,0.19256947,904.09,902.76,0.68913258]
[1768083791705,0.19256947,904.09,902.77,0.68913258]
[1768083791906,0.19256947,904.09,902.78,0.68913258]
[1768083792110,0.19256947,904.09,902.65,2.265]
[1768083792308,0.19256947,904.09,902.66,0.6891362]
[1768083792510,0.19256947,904.09,902.67,0.6891362]
[1768083792710,0.19256947,904.09,902.68,0.6891362]
[1768083792909,0.19256947,904.09,902.69,0.6891362]
[1768083793109,0.19256947,904.09,902.7,0.6891362]
[1768083793411,0.19256947,904.09,902.71,0.6891362]
[1768083793609,0.19256947,904.09,902.72,0.6891362]
[1768083793808,0.19256947,904.09,902.73,0.6891362]
[1768083794009,0.19256947,904.09,902.65,2.265]
[1768083794212,0.19256947,904.09,902.66,0.68913049]
[1768083794408,0.19256947,904.09,902.67,0.68913049]
[1768083794613,0.19256947,904.09,902.68,0.68913049]
[1768083794907,0.19256947,904.09,902.69,0.68913049]
[1768083795112,0.19256947,904.09,902.7,0.68913049]
[1768083795409,0.19256947,904.09,902.71,0.68913049]
[1768083795609,0.19256947,904.09,902.65,2.265]
[1768083795908,0.19256947,904.09,902.66,0.68918521]
[1768083796108,0.19256947,904.09,902.67,0.68918521]
[1768083796310,0.19256947,904.09,902.68,0.68918521]
[1768083796509,0.19256947,904.09,902.69,0.68918521]
[1768083796707,0.19256947,904.09,902.7,0.68918521]
[1768083796910,0.19256947,904.09,902.65,2.265]
[1768083797109,0.19256947,904.09,902.66,0.68928139]
[1768083797312,0.19256947,904.09,902.67,0.68928139]
[1768083797512,0.19256947,904.09,902.65,2.265]
[1768083797712,0.19256947,904.09,902.66,0.68938685]
[1768083797914,0.19256947,904.09,902.67,0.68938685]
[1768083798112,0.19256947,904.09,902.65,2.265]
[1768083798314,0.19256947,904.09,902.66,0.68932031]
[1768083798512,0.19256947,904.09,902.67,0.68932031]
[1768083798718,0.19256947,904.09,902.65,2.265]
[1768083798918,0.19256947,904.09,902.66,0.68943306]
[1768083799114,0.19256947,904.09,902.65,2.265]
[1768083799315,0.19256947,904.09,902.66,0.68935646]
[1768083799513,0.19256947,904.09,902.67,0.68935646]
[1768083799718,0.19256947,904.09,902.68,0.68943756]
[1768083799918,0.19256947,904.09,902.69,0.68943756]
[1768083800119,0.19256947,904.09,902.7,0.68943756]
[1768083800414,0.19256947,904.09,902.71,0.68943756]
[1768083800718,0.19256947,904.09,902.72,0.68943756]
[1768083801013,0.19256947,904.09,902.73,0.68943756]
[1768083801215,0.19256947,904.09,902.74,0.68943756]
[1768083801417,0.19256947,904.09,902.75,0.68943756]
[1768083801618,0.19256947,904.09,902.76,0.68943756]
[1768083801818,0.19256947,904.09,902.77,0.68943756]
[1768083802113,0.19256947,904.09,902.78,0.68943756]
[1768083802313,0.19256947,904.09,902.79,0.68943756]
[1768083802512,0.19256947,904.09,902.8,0.68943756]
[1768083802713,0.19256947,904.09,902.6,7.31850298]
[1768083802915,0.19256947,904.09,902.61,0.68941336]
[1768083803215,0.19256947,904.09,902.62,0.68941336]
[1768083803518,0.19256947,904.09,902.63,0.68941336]
[1768083803717,0.19256947,904.09,902.64,0.68941336]
[1768083803917,0.19256947,904.09,902.65,0.68941336]
[1768083804117,0.19256947,904.09,902.66,0.68941336]
[1768083804315,0.19256947,904.09,902.67,0.68941336]
[1768083804519,0.19256947,904.09,902.68,0.68941336]
[1768083804816,0.19256947,904.09,902.69,0.68941336]
[1768083805019,0.19256947,904.09,902.7,0.68941336]
[1768083805220,0.19256947,904.09,902.71,0.68941336]
[1768083805420,0.19256947,904.09,902.72,0.68941336]
[1768083805621,0.19256947,904.09,902.73,0.68941336]
[1768083805920,0.19256947,904.09,902.74,0.68941336]
[1768083806120,0.19256947,904.09,902.75,0.68941336]
[1768083806318,0.19256947,904.09,902.76,0.68941336]
[1768083806521,0.19256947,904.09,902.77,0.68941336]
[1768083806722,0.19256947,904.09,902.78,0.68941336]
[1768083806921,0.19256947,904.09,902.79,0.68941336]
[1768083807122,0.19256947,904.09,902.8,0.68941336]
[1768083807320,0.19256947,904.09,902.81,0.68941336]
[1768083807625,0.19256947,904.09,902.82,0.68941336]
[1768083807924,0.19256947,904.09,902.83,0.68941336]
[1768083808118,0.19256947,904.09,902.84,0.68941336]
[1768083808321,0.19256947,904.09,902.85,0.68941336]
[1768083808519,0.19256947,904.09,902.86,0.68941336]
[1768083808721,0.19256947,904.09,902.87,0.68941336]
[1768083808919,0.19256947,904.09,902.88,0.68941336]
[1768083809119,0.19256947,904.09,902.89,0.68941336]
[1768083809319,0.19256947,904.09,902.9,0.68941336]
[1768083809520,0.19256947,904.09,902.91,0.68941336]
[1768083809723,0.19256947,904.09,902.92,0.68941336]
[1768083809922,0.19256947,904.09,902.93,0.68941336]
[1768083810124,0.19256947,904.09,902.64,0.8288184]
[1768083810321,0.19256947,904.09,902.65,0.68819426]
[1768083810523,0.19256947,904.09,902.66,0.68819426]
[1768083810725,0.19256947,904.09,902.67,0.68819426]
[1768083810925,0.19256947,904.09,902.68,0.68819426]
[1768083811125,0.19256947,904.09,902.69,0.68819426]
[1768083811324,0.19256947,904.09,902.7,0.68819426]
[1768083811625,0.19256947,904.09,902.71,0.68819426]
[1768083811825,0.19256947,904.09,902.72,0.68819426]
[1768083812022,0.19256947,904.09,902.73,0.68819426]
[1768083812221,0.19256947,904.09,902.74,0.68819426]
[1768083812422,0.19256947,904.09,902.75,0.68819426]
[1768083812623,0.19256947,904.09,902.76,0.68819426]
[1768083812925,0.19256947,904.09,902.77,0.68819426]
[1768083813121,0.19256947,904.09,902.78,0.68819426]
[1768083813327,0.19256947,904.09,902.79,0.68819426]
[1768083813525,0.19256947,904.09,902.8,0.68819426]
[1768083813824,0.19256947,904.09,902.81,0.68819426]
[1768083814021,0.19256947,904.09,902.82,0.68819426]
[1768083814222,0.19256947,904.09,902.83,0.68819426]
[1768083814422,0.19256947,904.09,902.84,0.68819426]
[1768083814626,0.19256947,904.09,902.85,0.68819426]
[1768083814824,0.19256947,904.09,902.86,0.68819426]
[1768083815025,0.19256947,904.09,902.87,0.68819426]
[1768083815221,0.19256947,904.09,902.88,0.68819426]
[1768083815521,0.19256947,904.09,902.89,0.68819426]
[1768083815826,0.19256947,904.09,902.9,0.68819426]
[1768083816122,0.19256947,904.09,902.91,0.68819426]
[1768083816322,0.19256947,904.09,902.62,3.3648184]
[1768083816526,0.19256947,904.09,902.63,0.68788651]
[1768083816726,0.19256947,904.09,902.64,0.68788651]
[1768083816927,0.19256947,904.09,902.65,0.68788651]
[1768083817226,0.19256947,904.09,902.66,0.68788651]
[1768083817423,0.19256947,904.09,902.67,0.68788651]
[1768083817628,0.19256947,904.09,902.68,0.68788651]
[1768083817824,0.19256947,904.09,902.69,0.68788651]
[1768083818026,0.19256947,904.09,902.7,0.68788651]
[1768083818230,0.19256947,904.09,902.71,0.68788651]
[1768083818527,0.19256947,904.09,902.72,0.68788651]
[1768083818725,0.19256947,904.09,902.73,0.68788651]
[1768083818926,0.19256947,904.09,902.74,0.68788651]
[1768083819224,0.19256947,904.09,902.75,0.68788651]
[1768083819425,0.19256947,904.09,902.76,0.68788651]
[1768083819625,0.19256947,904.09,902.77,0.68788651]
[1768083819829,0.19256947,904.09,902.78,0.68788651]
[1768083820027,0.19256947,904.09,902.79,0.68788651]
[1768083820227,0.19256947,904.09,902.8,0.68788651]
[1768083820430,0.19256947,904.09,902.81,0.68788651]
[1768083820626,0.19256947,904.09,902.82,0.68788651]
[1768083820827,0.19256947,904.09,902.83,0.68788651]
[1768083821028,0.19256947,904.09,902.84,0.68788651]
[1768083821331,0.19256947,904.09,902.85,0.68788651]
[1768083821531,0.19256947,904.09,902.86,0.68788651]
[1768083821828,0.19256947,904.09,902.87,0.68788651]
[1768083822030,0.19256947,904.09,902.88,0.68788651]
[1768083822231,0.19256947,904.09,902.89,0.68788651]
[1768083822428,0.19256947,904.09,902.9,0.68788651]
[1768083822632,0.19256947,904.09,902.62,2.536]
[1768083822832,0.19256947,904.09,902.63,0.68769123]
[1768083823032,0.19256947,904.09,902.64,0.68769123]
[1768083823234,0.19256947,904.09,902.65,0.68769123]
[1768083823428,0.19256947,904.09,902.66,0.68769123]
[1768083823628,0.19256947,904.09,902.67,0.68769123]
[1768083823934,0.19256947,904.09,902.68,0.68769123]
[1768083824231,0.19256947,904.09,902.69,0.68769123]
[1768083824433,0.19256947,904.09,902.7,0.68769123]
[1768083824635,0.19256947,904.09,902.71,0.68769123]
[1768083824829,0.19256947,904.09,902.72,0.68769123]